[Event "*** Titled Tuesday Blitz"]
[Site "Chess.com"]
[Date "2020.04.21"]
[Round "4"]
[White "Oglob71"]
[Black "machupichu10"]
[Result "0-1"]
[WhiteElo "2453"]
[BlackElo "2762"]
[TimeControl "180+1"]
[EndTime "10:40:14 PDT"]
[Termination "machupichu10 won by resignation"]

1. d4 {[%clk 0:02:58.8]} 1... d5 {[%clk 0:03:00.2]} 2. Nf3 {[%clk 0:02:58.2]}
2... c6 {[%clk 0:03:00.7]} 3. c4 {[%clk 0:02:58.6]} 3... Nf6 {[%clk 0:03:01.1]}
4. e3 {[%clk 0:02:58.9]} 4... e6 {[%clk 0:02:59.6]} 5. Bd3 {[%clk 0:02:58.7]}
5... Nbd7 {[%clk 0:03:00.3]} 6. O-O {[%clk 0:02:57.6]} 6... Bd6 {[%clk
0:03:00.8]} 7. Nbd2 {[%clk 0:02:57.7]} 7... O-O {[%clk 0:03:01.4]} 8. e4 {[%clk
0:02:58.2]} 8... dxe4 {[%clk 0:03:01.5]} 9. Nxe4 {[%clk 0:02:58.6]} 9... Nxe4
{[%clk 0:03:02]} 10. Bxe4 {[%clk 0:02:59.2]} 10... Nf6 {[%clk 0:03:02.2]} 11.
Bc2 {[%clk 0:02:56.9]} 11... h6 {[%clk 0:03:02.6]} 12. c5 {[%clk 0:02:56.8]}
12... Bc7 {[%clk 0:03:02.3]} 13. Re1 {[%clk 0:02:56.7]} 13... b6 {[%clk
0:03:02]} 14. Be3 {[%clk 0:02:50.2]} 14... bxc5 {[%clk 0:02:59]} 15. dxc5 {[%clk
0:02:50]} 15... Qxd1 {[%clk 0:02:58.7]} 16. Rexd1 {[%clk 0:02:50.2]} 16... Nd5
{[%clk 0:02:59.3]} 17. Bd4 {[%clk 0:02:49.8]} 17... f6 {[%clk 0:02:58.6]} 18. a3
{[%clk 0:02:48.8]} 18... Rb8 {[%clk 0:02:57.8]} 19. Ba4 {[%clk 0:02:44.5]} 19...
Bd7 {[%clk 0:02:55.9]} 20. Rab1 {[%clk 0:02:32.9]} 20... Kf7 {[%clk 0:02:55.9]}
21. Nd2 {[%clk 0:02:23.7]} 21... e5 {[%clk 0:02:55.1]} 22. Be3 {[%clk
0:02:23.9]} 22... Bf5 {[%clk 0:02:54.2]} 23. Rbc1 {[%clk 0:02:19.2]} 23... Rfd8
{[%clk 0:01:54.4]} 24. Nc4 {[%clk 0:02:16.4]} 24... Nxe3 {[%clk 0:01:52.8]} 25.
Nxe3 {[%clk 0:02:16]} 25... Be6 {[%clk 0:01:45.8]} 26. b4 {[%clk 0:02:12.5]}
26... Rd4 {[%clk 0:01:40.7]} 27. Bxc6 {[%clk 0:02:10.2]} 27... Rbd8 {[%clk
0:01:41.3]} 28. Rxd4 {[%clk 0:02:03.1]} 28... exd4 {[%clk 0:01:41.3]} 29. Nf1
{[%clk 0:01:55.4]} 29... Bf4 {[%clk 0:01:36.6]} 30. Rd1 {[%clk 0:01:46]} 30...
Bb3 {[%clk 0:01:36.1]} 31. Rd3 {[%clk 0:01:45.4]} 31... Bc4 {[%clk 0:01:34.8]}
32. Rd1 {[%clk 0:01:45.7]} 32... Be2 {[%clk 0:01:11.1]} 33. Rb1 {[%clk 0:01:31]}
33... Bd3 {[%clk 0:01:03.7]} 34. Rd1 {[%clk 0:01:30]} 34... Bc2 {[%clk
0:01:01.3]} 35. Ra1 {[%clk 0:01:19]} 35... d3 {[%clk 0:01:01.4]} 36. Bf3 {[%clk
0:00:49]} 36... Be5 {[%clk 0:01:01.4]} 37. Re1 {[%clk 0:00:47.8]} 37... d2
{[%clk 0:00:59.1]} 38. Nxd2 {[%clk 0:00:42.2]} 38... Rxd2 {[%clk 0:01:00]} 39.
c6 {[%clk 0:00:42.2]} 39... Bf5 {[%clk 0:00:53.9]} 40. g3 {[%clk 0:00:31.9]}
40... Bd4 {[%clk 0:00:49.6]} 41. Rf1 {[%clk 0:00:30.2]} 41... Rc2 {[%clk
0:00:48.9]} 42. Bg2 {[%clk 0:00:29.4]} 42... g5 {[%clk 0:00:48.7]} 43. h3 {[%clk
0:00:29.2]} 43... h5 {[%clk 0:00:48.8]} 44. b5 {[%clk 0:00:23]} 44... g4 {[%clk
0:00:48.4]} 45. hxg4 {[%clk 0:00:22.2]} 45... hxg4 {[%clk 0:00:49.3]} 46. a4
{[%clk 0:00:22.5]} 46... Bb6 {[%clk 0:00:49.8]} 47. Kh2 {[%clk 0:00:21.4]} 47...
Rxf2 {[%clk 0:00:39.6]} 48. Ra1 {[%clk 0:00:21.1]} 48... Be4 {[%clk 0:00:38.8]}
49. Rg1 {[%clk 0:00:19.3]} 49... Rc2 {[%clk 0:00:39.3]} 50. a5 {[%clk
0:00:16.2]} 50... Bxg1+ {[%clk 0:00:39]} 51. Kxg1 {[%clk 0:00:16.8]} 51... Rxg2+
{[%clk 0:00:39.5]} 52. Kf1 {[%clk 0:00:17.3]} 52... Rc2 {[%clk 0:00:39.9]} 53.
Ke1 {[%clk 0:00:16.4]} 53... Bxc6 {[%clk 0:00:39.3]} 0-1

[Event "*** Titled Tuesday Blitz"]
[Site "Chess.com"]
[Date "2020.04.21"]
[Round "4"]
[White "bupunsu01"]
[Black "drd_davi"]
[Result "0-1"]
[WhiteElo "2290"]
[BlackElo "2532"]
[TimeControl "180+1"]
[EndTime "10:40:14 PDT"]
[Termination "drd_davi won on time"]

1. d4 {[%clk 0:03:00.9]} 1... Nf6 {[%clk 0:02:57.9]} 2. c4 {[%clk 0:03:00.2]}
2... e6 {[%clk 0:02:58.2]} 3. a3 {[%clk 0:02:56.3]} 3... c5 {[%clk 0:02:56.9]}
4. Nf3 {[%clk 0:02:55.4]} 4... cxd4 {[%clk 0:02:55.9]} 5. Nxd4 {[%clk
0:02:54.9]} 5... Nc6 {[%clk 0:02:56.8]} 6. Nc3 {[%clk 0:02:52.5]} 6... Be7
{[%clk 0:02:56.2]} 7. Bg5 {[%clk 0:02:51.1]} 7... O-O {[%clk 0:02:55.8]} 8. e3
{[%clk 0:02:51]} 8... h6 {[%clk 0:02:50.3]} 9. Bh4 {[%clk 0:02:47.3]} 9... d5
{[%clk 0:02:49.7]} 10. cxd5 {[%clk 0:02:44.7]} 10... Nxd5 {[%clk 0:02:49.1]} 11.
Bxe7 {[%clk 0:02:43.4]} 11... Ncxe7 {[%clk 0:02:48.9]} 12. Nxd5 {[%clk
0:02:38.6]} 12... Qxd5 {[%clk 0:02:48.7]} 13. Qf3 {[%clk 0:02:32.1]} 13... Qa5+
{[%clk 0:02:40.3]} 14. b4 {[%clk 0:02:29.7]} 14... Qc7 {[%clk 0:02:40.8]} 15.
Nb5 {[%clk 0:02:21.8]} 15... Qe5 {[%clk 0:02:14]} 16. Qd1 {[%clk 0:01:58.9]}
16... Bd7 {[%clk 0:01:28.8]} 17. Nd4 {[%clk 0:01:55]} 17... Bc6 {[%clk
0:01:27.3]} 18. Nxc6 {[%clk 0:01:46.4]} 18... Qc3+ {[%clk 0:01:25.4]} 19. Ke2
{[%clk 0:01:44.9]} 19... Nxc6 {[%clk 0:01:19.8]} 20. Qc1 {[%clk 0:01:43.4]}
20... Qe5 {[%clk 0:01:13.6]} 21. f4 {[%clk 0:01:38.8]} 21... Qe4 {[%clk
0:01:08.6]} 22. Kf2 {[%clk 0:01:19.3]} 22... Rac8 {[%clk 0:01:01.8]} 23. Qb2
{[%clk 0:01:16.5]} 23... Ne7 {[%clk 0:00:53.9]} 24. Be2 {[%clk 0:00:57.8]} 24...
Nf5 {[%clk 0:00:50.7]} 25. Qe5 {[%clk 0:00:43.4]} 25... Qxe5 {[%clk 0:00:28.6]}
26. fxe5 {[%clk 0:00:42.9]} 26... Rc2 {[%clk 0:00:27.3]} 27. Rhd1 {[%clk
0:00:26.8]} 27... Rfc8 {[%clk 0:00:22.6]} 28. Rd7 {[%clk 0:00:25.4]} 28... R8c3
{[%clk 0:00:18.6]} 29. e4 {[%clk 0:00:07.4]} 29... Re3 {[%clk 0:00:13]} 30. Re1
{[%clk 0:00:06.5]} 30... Rxe4 {[%clk 0:00:11.8]} 0-1

[Event "*** Titled Tuesday Blitz"]
[Site "Chess.com"]
[Date "2020.04.21"]
[Round "4"]
[White "MarcoCorvi"]
[Black "MokshAD1603"]
[Result "1-0"]
[WhiteElo "2167"]
[BlackElo "2430"]
[TimeControl "180+1"]
[EndTime "10:40:15 PDT"]
[Termination "MarcoCorvi won by checkmate"]

1. e4 {[%clk 0:03:00.9]} 1... e5 {[%clk 0:02:56.4]} 2. Nf3 {[%clk 0:02:58.9]}
2... Nc6 {[%clk 0:02:56.5]} 3. Bb5 {[%clk 0:02:58.5]} 3... a6 {[%clk 0:02:55.1]}
4. Bxc6 {[%clk 0:02:57.7]} 4... dxc6 {[%clk 0:02:54.5]} 5. O-O {[%clk
0:02:58.2]} 5... Qf6 {[%clk 0:02:49.9]} 6. d4 {[%clk 0:02:56.4]} 6... exd4
{[%clk 0:02:50.8]} 7. e5 {[%clk 0:02:53.8]} 7... Qg6 {[%clk 0:02:39.5]} 8. Qxd4
{[%clk 0:02:48.8]} 8... Be7 {[%clk 0:02:34.6]} 9. Nc3 {[%clk 0:02:24]} 9... Nh6
{[%clk 0:02:31.6]} 10. Bxh6 {[%clk 0:02:21.9]} 10... Qxh6 {[%clk 0:02:29.5]} 11.
Rad1 {[%clk 0:02:16.5]} 11... O-O {[%clk 0:02:26.9]} 12. Rfe1 {[%clk 0:02:10.4]}
12... Be6 {[%clk 0:02:13.7]} 13. Qe3 {[%clk 0:02:00.5]} 13... Qxe3 {[%clk
0:02:04.4]} 14. Rxe3 {[%clk 0:02:01.4]} 14... Rfd8 {[%clk 0:02:05.1]} 15. Red3
{[%clk 0:01:59.6]} 15... Rxd3 {[%clk 0:02:03.3]} 16. Rxd3 {[%clk 0:02:00.5]}
16... Rd8 {[%clk 0:02:02.3]} 17. Rxd8+ {[%clk 0:01:59.2]} 17... Bxd8 {[%clk
0:02:03.2]} 18. Kf1 {[%clk 0:01:58.4]} 18... c5 {[%clk 0:02:01.6]} 19. Ke2
{[%clk 0:01:57.4]} 19... Kf8 {[%clk 0:01:56.6]} 20. Ne4 {[%clk 0:01:55.4]} 20...
b6 {[%clk 0:01:53.5]} 21. b3 {[%clk 0:01:54.8]} 21... a5 {[%clk 0:01:53]} 22. c4
{[%clk 0:01:51.2]} 22... h6 {[%clk 0:01:50.3]} 23. Ke3 {[%clk 0:01:49.5]} 23...
g5 {[%clk 0:01:50.4]} 24. h3 {[%clk 0:01:47.3]} 24... Be7 {[%clk 0:01:49.3]} 25.
Ne1 {[%clk 0:01:44.9]} 25... Ke8 {[%clk 0:01:48.9]} 26. Nd3 {[%clk 0:01:44.8]}
26... Kd7 {[%clk 0:01:49.4]} 27. f4 {[%clk 0:01:41.9]} 27... Bf5 {[%clk
0:01:49]} 28. g4 {[%clk 0:01:40]} 28... gxf4+ {[%clk 0:01:43.8]} 29. Nxf4 {[%clk
0:01:36.6]} 29... Bh7 {[%clk 0:01:43]} 30. Nd5 {[%clk 0:01:33.3]} 30... Bxe4
{[%clk 0:01:35.6]} 31. Kxe4 {[%clk 0:01:32.2]} 31... Bh4 {[%clk 0:01:35.3]} 32.
Kf5 {[%clk 0:01:27]} 32... c6 {[%clk 0:01:33.2]} 33. Nf6+ {[%clk 0:01:25]} 33...
Kd8 {[%clk 0:01:29.8]} 34. a4 {[%clk 0:01:22.3]} 34... Bg5 {[%clk 0:01:27]} 35.
Ne4 {[%clk 0:01:16.8]} 35... Bh4 {[%clk 0:01:25.8]} 36. Nd2 {[%clk 0:01:16.3]}
36... Ke7 {[%clk 0:01:22.9]} 37. Nf3 {[%clk 0:01:16.2]} 37... Bg3 {[%clk
0:01:22.2]} 38. h4 {[%clk 0:01:13.9]} 38... Bf2 {[%clk 0:01:15.5]} 39. h5 {[%clk
0:01:12.1]} 39... Be3 {[%clk 0:01:15.3]} 40. g5 {[%clk 0:01:10.1]} 40... hxg5
{[%clk 0:01:08.6]} 41. Nxg5 {[%clk 0:01:11]} 41... Kf8 {[%clk 0:01:08.7]} 42.
Ne4 {[%clk 0:01:04.5]} 42... Kg7 {[%clk 0:01:07.5]} 43. Nf6 {[%clk 0:00:59.6]}
43... Bd4 {[%clk 0:01:00.8]} 44. Ng4 {[%clk 0:00:56.5]} 44... Bc3 {[%clk
0:00:54.5]} 45. h6+ {[%clk 0:00:55.6]} 45... Kg8 {[%clk 0:00:53.8]} 46. Kf6
{[%clk 0:00:52.5]} 46... Bd2 {[%clk 0:00:52.3]} 47. Ke7 {[%clk 0:00:49.3]} 47...
Bg5+ {[%clk 0:00:46.9]} 48. Nf6+ {[%clk 0:00:47]} 48... Kh8 {[%clk 0:00:45.1]}
49. h7 {[%clk 0:00:45.3]} 49... Kg7 {[%clk 0:00:44.1]} 50. h8=Q+ {[%clk
0:00:43.1]} 50... Kxh8 {[%clk 0:00:43.6]} 51. Kxf7 {[%clk 0:00:44]} 51... b5
{[%clk 0:00:41.7]} 52. e6 {[%clk 0:00:43.5]} 52... Bxf6 {[%clk 0:00:31.1]} 53.
Kxf6 {[%clk 0:00:41.5]} 53... b4 {[%clk 0:00:31.6]} 54. e7 {[%clk 0:00:39.9]}
54... Kh7 {[%clk 0:00:30.6]} 55. e8=Q {[%clk 0:00:38.8]} 55... Kh6 {[%clk
0:00:30.3]} 56. Qh8# {[%clk 0:00:38.3]} 1-0

[Event "*** Titled Tuesday Blitz"]
[Site "Chess.com"]
[Date "2020.04.21"]
[Round "4"]
[White "GMKrikor"]
[Black "LuckSlayeer"]
[Result "1-0"]
[WhiteElo "2734"]
[BlackElo "2519"]
[TimeControl "180+1"]
[EndTime "10:40:17 PDT"]
[Termination "GMKrikor won on time"]

1. d4 {[%clk 0:03:00.9]} 1... Nf6 {[%clk 0:02:40.6]} 2. c4 {[%clk 0:02:56.4]}
2... e6 {[%clk 0:02:39.1]} 3. Nc3 {[%clk 0:02:52.6]} 3... Bb4 {[%clk 0:02:38.5]}
4. Bd2 {[%clk 0:02:50.5]} 4... O-O {[%clk 0:02:36.4]} 5. Nf3 {[%clk 0:02:49.7]}
5... d5 {[%clk 0:02:36.1]} 6. e3 {[%clk 0:02:48.2]} 6... c5 {[%clk 0:02:35.1]}
7. a3 {[%clk 0:02:27.4]} 7... Bxc3 {[%clk 0:02:34.1]} 8. Bxc3 {[%clk 0:02:28.3]}
8... Ne4 {[%clk 0:02:33.8]} 9. Rc1 {[%clk 0:02:23.4]} 9... Nc6 {[%clk
0:02:27.6]} 10. dxc5 {[%clk 0:01:46.4]} 10... Nxc3 {[%clk 0:02:26.5]} 11. Rxc3
{[%clk 0:01:45.8]} 11... a5 {[%clk 0:01:52.3]} 12. cxd5 {[%clk 0:01:28.4]} 12...
exd5 {[%clk 0:01:53.2]} 13. Be2 {[%clk 0:01:27.9]} 13... Bf5 {[%clk 0:01:44.8]}
14. O-O {[%clk 0:01:26.9]} 14... Be4 {[%clk 0:01:44.9]} 15. Nd4 {[%clk
0:01:17.8]} 15... Ne5 {[%clk 0:01:38.9]} 16. f3 {[%clk 0:01:15.1]} 16... Bg6
{[%clk 0:01:38.5]} 17. Qd2 {[%clk 0:01:15.1]} 17... a4 {[%clk 0:01:32.4]} 18.
Rd1 {[%clk 0:01:07.2]} 18... Qa5 {[%clk 0:01:26.5]} 19. Rcc1 {[%clk 0:00:59.9]}
19... Qd8 {[%clk 0:01:09.4]} 20. Nb5 {[%clk 0:00:53.8]} 20... Qf6 {[%clk
0:00:41.1]} 21. Nc7 {[%clk 0:00:46.4]} 21... Rad8 {[%clk 0:00:37]} 22. Nxd5
{[%clk 0:00:46.7]} 22... Qh4 {[%clk 0:00:24.2]} 23. e4 {[%clk 0:00:41.2]} 23...
f5 {[%clk 0:00:14.2]} 24. g3 {[%clk 0:00:30]} 24... Qh3 {[%clk 0:00:14]} 25.
exf5 {[%clk 0:00:29.1]} 25... Bxf5 {[%clk 0:00:08.4]} 26. Qe3 {[%clk 0:00:21.6]}
26... Nc6 {[%clk 0:00:05.1]} 27. Bf1 {[%clk 0:00:16.3]} 27... Qh5 {[%clk
0:00:03.6]} 28. g4 {[%clk 0:00:13.4]} 28... Bxg4 {[%clk 0:00:03.8]} 29. fxg4
{[%clk 0:00:14.3]} 29... Qxg4+ {[%clk 0:00:04.4]} 30. Qg3 {[%clk 0:00:13.8]}
30... Qe6 {[%clk 0:00:01.8]} 31. Bg2 {[%clk 0:00:10.5]} 31... Kh8 {[%clk
0:00:01.7]} 32. Kh1 {[%clk 0:00:10.6]} 32... Ne5 {[%clk 0:00:01.6]} 33. Re1
{[%clk 0:00:10.8]} 33... Rxd5 {[%clk 0:00:01.8]} 34. Bxd5 {[%clk 0:00:07.2]}
34... Qxd5+ {[%clk 0:00:02.2]} 35. Qg2 {[%clk 0:00:08.1]} 35... Nf3 {[%clk
0:00:02]} 36. Rf1 {[%clk 0:00:08.6]} 36... Qe4 {[%clk 0:00:01.5]} 37. Rc3 {[%clk
0:00:08.1]} 1-0

[Event "*** Titled Tuesday Blitz"]
[Site "Chess.com"]
[Date "2020.04.21"]
[Round "4"]
[White "fancyknightmaneuvers"]
[Black "allvim"]
[Result "1-0"]
[WhiteElo "2609"]
[BlackElo "2308"]
[TimeControl "180+1"]
[EndTime "10:40:17 PDT"]
[Termination "fancyknightmaneuvers won by resignation"]

1. e4 {[%clk 0:03:00]} 1... c5 {[%clk 0:02:52.7]} 2. Nf3 {[%clk 0:02:59.9]} 2...
d6 {[%clk 0:02:50.7]} 3. Bb5+ {[%clk 0:02:59]} 3... Bd7 {[%clk 0:02:49.3]} 4.
Bxd7+ {[%clk 0:02:57.9]} 4... Qxd7 {[%clk 0:02:49]} 5. c4 {[%clk 0:02:57.9]}
5... Nc6 {[%clk 0:02:48]} 6. Nc3 {[%clk 0:02:56.3]} 6... e6 {[%clk 0:02:47.5]}
7. d4 {[%clk 0:02:56.1]} 7... cxd4 {[%clk 0:02:46.8]} 8. Nxd4 {[%clk 0:02:57]}
8... Nf6 {[%clk 0:02:46]} 9. Be3 {[%clk 0:02:56.7]} 9... Be7 {[%clk 0:02:45.8]}
10. f3 {[%clk 0:02:54.3]} 10... O-O {[%clk 0:02:44.8]} 11. O-O {[%clk
0:02:54.6]} 11... Rac8 {[%clk 0:02:42.2]} 12. Qe2 {[%clk 0:02:54.6]} 12... a6
{[%clk 0:02:40.9]} 13. Rfd1 {[%clk 0:02:54.1]} 13... Qc7 {[%clk 0:02:40.5]} 14.
Rac1 {[%clk 0:02:35]} 14... Nxd4 {[%clk 0:01:43.1]} 15. Rxd4 {[%clk 0:02:29.7]}
15... e5 {[%clk 0:01:41.7]} 16. Rdd1 {[%clk 0:02:28.9]} 16... Qxc4 {[%clk
0:01:39]} 17. Qf2 {[%clk 0:02:29.1]} 17... Qe6 {[%clk 0:01:34.9]} 18. Bb6 {[%clk
0:02:03.7]} 18... Nd7 {[%clk 0:01:26.5]} 19. Nd5 {[%clk 0:02:03.2]} 19... Rxc1
{[%clk 0:01:19]} 20. Rxc1 {[%clk 0:02:02.2]} 20... Nf6 {[%clk 0:01:14.5]} 21.
Nxe7+ {[%clk 0:01:53.9]} 21... Qxe7 {[%clk 0:01:15.4]} 22. Rc7 {[%clk
0:01:54.2]} 22... Qe6 {[%clk 0:01:15]} 23. b3 {[%clk 0:01:53.1]} 23... Rc8
{[%clk 0:01:13.2]} 24. Qc2 {[%clk 0:01:51]} 24... Rxc7 {[%clk 0:01:04]} 25. Qxc7
{[%clk 0:01:51.9]} 25... h6 {[%clk 0:00:52.6]} 26. Qxb7 {[%clk 0:01:47.4]} 26...
d5 {[%clk 0:00:52.6]} 27. exd5 {[%clk 0:01:34.3]} 27... Nxd5 {[%clk 0:00:53.5]}
28. Bc5 {[%clk 0:01:26.8]} 28... Nf4 {[%clk 0:00:52.2]} 29. Be3 {[%clk
0:01:00.3]} 29... Ne2+ {[%clk 0:00:23.3]} 30. Kf2 {[%clk 0:00:53.9]} 30... Nd4
{[%clk 0:00:24.2]} 31. Qa8+ {[%clk 0:00:47.7]} 31... Kh7 {[%clk 0:00:22.5]} 32.
Bxd4 {[%clk 0:00:44.6]} 32... exd4 {[%clk 0:00:20.5]} 33. Qe4+ {[%clk
0:00:45.1]} 33... Qxe4 {[%clk 0:00:09.8]} 34. fxe4 {[%clk 0:00:46]} 34... Kg6
{[%clk 0:00:10.7]} 35. Ke2 {[%clk 0:00:46.5]} 35... Kf6 {[%clk 0:00:11]} 36. Kd3
{[%clk 0:00:47]} 36... Ke5 {[%clk 0:00:10.9]} 37. b4 {[%clk 0:00:47.2]} 37... g6
{[%clk 0:00:10.3]} 38. a4 {[%clk 0:00:47.6]} 38... f5 {[%clk 0:00:10.1]} 39.
exf5 {[%clk 0:00:48.5]} 39... gxf5 {[%clk 0:00:10.9]} 40. g3 {[%clk 0:00:48.7]}
40... h5 {[%clk 0:00:09.8]} 41. b5 {[%clk 0:00:38]} 41... axb5 {[%clk 0:00:09]}
42. axb5 {[%clk 0:00:38.9]} 42... Kd5 {[%clk 0:00:09]} 43. b6 {[%clk 0:00:39.2]}
43... Kc6 {[%clk 0:00:08.9]} 44. Kxd4 {[%clk 0:00:39.4]} 44... f4 {[%clk
0:00:06.8]} 45. gxf4 {[%clk 0:00:39.2]} 1-0

[Event "*** Titled Tuesday Blitz"]
[Site "Chess.com"]
[Date "2020.04.21"]
[Round "4"]
[White "Mazanchenko_Dmitry"]
[Black "Shazuli9878"]
[Result "0-1"]
[WhiteElo "2118"]
[BlackElo "2396"]
[TimeControl "180+1"]
[EndTime "10:40:17 PDT"]
[Termination "Shazuli9878 won on time"]

1. e4 {[%clk 0:03:00.9]} 1... c6 {[%clk 0:02:58.2]} 2. d4 {[%clk 0:02:59.9]}
2... d5 {[%clk 0:02:59.1]} 3. exd5 {[%clk 0:02:59.6]} 3... cxd5 {[%clk 0:03:00]}
4. c4 {[%clk 0:03:00.2]} 4... Nf6 {[%clk 0:03:00.9]} 5. Nc3 {[%clk 0:03:00.9]}
5... e6 {[%clk 0:03:01]} 6. Nf3 {[%clk 0:03:00.6]} 6... Bb4 {[%clk 0:03:01]} 7.
a3 {[%clk 0:02:58.5]} 7... Bxc3+ {[%clk 0:02:58.5]} 8. bxc3 {[%clk 0:02:59.4]}
8... O-O {[%clk 0:02:57.5]} 9. cxd5 {[%clk 0:02:46.1]} 9... exd5 {[%clk
0:02:54.2]} 10. Be2 {[%clk 0:02:45.6]} 10... Ne4 {[%clk 0:02:54.2]} 11. Qc2
{[%clk 0:02:43.1]} 11... Bf5 {[%clk 0:02:51]} 12. Bd3 {[%clk 0:02:39]} 12... Qc7
{[%clk 0:02:44.7]} 13. Bb2 {[%clk 0:02:35.6]} 13... Bg6 {[%clk 0:02:39.4]} 14.
O-O {[%clk 0:02:34]} 14... Nc6 {[%clk 0:02:39.6]} 15. Nh4 {[%clk 0:02:26]} 15...
Rfe8 {[%clk 0:02:38.8]} 16. Nxg6 {[%clk 0:02:24.5]} 16... hxg6 {[%clk
0:02:39.7]} 17. c4 {[%clk 0:02:20.7]} 17... Qb6 {[%clk 0:02:24.2]} 18. Bxe4
{[%clk 0:01:53.7]} 18... dxe4 {[%clk 0:02:12.8]} 19. d5 {[%clk 0:01:49]} 19...
Nd4 {[%clk 0:02:12.9]} 20. Bxd4 {[%clk 0:01:42.3]} 20... Qxd4 {[%clk 0:02:12.8]}
21. Rfd1 {[%clk 0:01:42.5]} 21... Qc5 {[%clk 0:02:13]} 22. Rab1 {[%clk 0:01:38]}
22... Rac8 {[%clk 0:02:11.6]} 23. Rxb7 {[%clk 0:01:33.6]} 23... e3 {[%clk
0:02:11.2]} 24. fxe3 {[%clk 0:01:27.6]} 24... Rxe3 {[%clk 0:02:11.1]} 25. Qf2
{[%clk 0:01:23.5]} 25... f6 {[%clk 0:02:01.5]} 26. Rb5 {[%clk 0:01:18.9]} 26...
Qxa3 {[%clk 0:02:00.6]} 27. d6 {[%clk 0:01:00.8]} 27... Rd3 {[%clk 0:02:00.3]}
28. Rd5 {[%clk 0:00:56.1]} 28... Rxd5 {[%clk 0:01:56.8]} 29. cxd5 {[%clk
0:00:45.7]} 29... Qxd6 {[%clk 0:01:54.5]} 30. Qxa7 {[%clk 0:00:45]} 30... Rc5
{[%clk 0:01:49.6]} 31. h3 {[%clk 0:00:33.6]} 31... Kh7 {[%clk 0:01:49.2]} 32.
Qa2 {[%clk 0:00:29.8]} 32... Rb5 {[%clk 0:01:39.5]} 33. Qd2 {[%clk 0:00:25.8]}
33... Rb3 {[%clk 0:01:36.4]} 34. h4 {[%clk 0:00:19.6]} 34... Rb4 {[%clk
0:01:32.7]} 35. h5 {[%clk 0:00:16.5]} 35... gxh5 {[%clk 0:01:31.2]} 36. Qe2
{[%clk 0:00:15.1]} 36... Qc5+ {[%clk 0:01:19.8]} 37. Qf2 {[%clk 0:00:12.3]}
37... Qxf2+ {[%clk 0:01:10.5]} 38. Kxf2 {[%clk 0:00:13.2]} 38... Rb7 {[%clk
0:01:11]} 39. Kf3 {[%clk 0:00:12.2]} 39... Kg6 {[%clk 0:01:10.9]} 40. Ke4 {[%clk
0:00:11.2]} 40... Kf7 {[%clk 0:01:10.7]} 41. Kd4 {[%clk 0:00:08.2]} 41... Ke7
{[%clk 0:01:07.6]} 42. Kc5 {[%clk 0:00:06.9]} 42... Rb2 {[%clk 0:01:05]} 43. Rd4
{[%clk 0:00:03.8]} 43... Rc2+ {[%clk 0:01:01.1]} 44. Kb6 {[%clk 0:00:03]} 44...
Kd6 {[%clk 0:01:00.1]} 45. g3 {[%clk 0:00:01.5]} 45... Rb2+ {[%clk 0:01:00.2]}
0-1

[Event "*** Titled Tuesday Blitz"]
[Site "Chess.com"]
[Date "2020.04.21"]
[Round "4"]
[White "profofchess"]
[Black "Shivagami"]
[Result "1-0"]
[WhiteElo "2377"]
[BlackElo "2135"]
[TimeControl "180+1"]
[EndTime "10:40:19 PDT"]
[Termination "profofchess won on time"]

1. e4 {[%clk 0:03:00.9]} 1... c5 {[%clk 0:02:55.5]} 2. Nc3 {[%clk 0:02:58.7]}
2... e6 {[%clk 0:02:53.9]} 3. Nge2 {[%clk 0:02:58.3]} 3... d5 {[%clk 0:02:52.9]}
4. exd5 {[%clk 0:02:58.5]} 4... exd5 {[%clk 0:02:53.1]} 5. d4 {[%clk 0:02:59.4]}
5... Nf6 {[%clk 0:02:38.3]} 6. g3 {[%clk 0:02:58.2]} 6... Nc6 {[%clk 0:02:36.5]}
7. Bg2 {[%clk 0:02:58.3]} 7... Be6 {[%clk 0:02:28.1]} 8. O-O {[%clk 0:02:56.3]}
8... h6 {[%clk 0:02:22.3]} 9. Re1 {[%clk 0:02:46.5]} 9... Be7 {[%clk 0:02:02.5]}
10. dxc5 {[%clk 0:02:34.6]} 10... O-O {[%clk 0:01:23.2]} 11. Na4 {[%clk
0:02:02.6]} 11... Re8 {[%clk 0:00:32.2]} 12. Nd4 {[%clk 0:01:34.8]} 12... Bf8
{[%clk 0:00:20.3]} 13. Nxe6 {[%clk 0:01:33.2]} 13... fxe6 {[%clk 0:00:19.4]} 14.
c3 {[%clk 0:01:24.1]} 14... Nd7 {[%clk 0:00:16.9]} 15. b4 {[%clk 0:01:23.1]}
15... Qf6 {[%clk 0:00:15.4]} 16. Bb2 {[%clk 0:01:07.4]} 16... d4 {[%clk
0:00:08.6]} 17. cxd4 {[%clk 0:01:03.9]} 17... Nxb4 {[%clk 0:00:08.8]} 18. d5
{[%clk 0:01:04.2]} 18... e5 {[%clk 0:00:08.8]} 19. Qb3 {[%clk 0:01:01.1]} 19...
Na6 {[%clk 0:00:07]} 20. d6+ {[%clk 0:00:57.2]} 20... Kh8 {[%clk 0:00:06.2]} 21.
Qd5 {[%clk 0:00:55.1]} 21... Naxc5 {[%clk 0:00:05.9]} 22. Nxc5 {[%clk
0:00:54.5]} 22... Nxc5 {[%clk 0:00:04.4]} 23. Qxc5 {[%clk 0:00:54.6]} 23... Bxd6
{[%clk 0:00:05.3]} 24. Qd5 {[%clk 0:00:54.3]} 24... Rad8 {[%clk 0:00:01.6]} 25.
Qxb7 {[%clk 0:00:50.8]} 25... Rb8 {[%clk 0:00:01.6]} 26. Qf3 {[%clk 0:00:43]}
26... Rxb2 {[%clk 0:00:02.5]} 27. Qxf6 {[%clk 0:00:42.3]} 27... gxf6 {[%clk
0:00:03.4]} 28. Rad1 {[%clk 0:00:42.5]} 28... Bc5 {[%clk 0:00:03.3]} 29. Rf1
{[%clk 0:00:40.3]} 29... Reb8 {[%clk 0:00:03.8]} 30. Bd5 {[%clk 0:00:33.3]}
30... Rc2 {[%clk 0:00:03.4]} 31. Bb3 {[%clk 0:00:33.2]} 31... Rc3 {[%clk
0:00:02.7]} 32. Kg2 {[%clk 0:00:32.9]} 32... Bd4 {[%clk 0:00:03.6]} 33. Rc1
{[%clk 0:00:31.7]} 33... a5 {[%clk 0:00:03.9]} 34. Rxc3 {[%clk 0:00:31.3]} 34...
Bxc3 {[%clk 0:00:04.8]} 35. Rc1 {[%clk 0:00:31.4]} 35... Bd4 {[%clk 0:00:05.5]}
36. Rc6 {[%clk 0:00:30.9]} 36... Kg7 {[%clk 0:00:04.7]} 37. Ra6 {[%clk
0:00:30.1]} 37... Bc3 {[%clk 0:00:04]} 38. Ra7+ {[%clk 0:00:28.6]} 38... Kg6
{[%clk 0:00:03.4]} 39. Bc2+ {[%clk 0:00:28.1]} 39... f5 {[%clk 0:00:01.4]} 40.
Ra6+ {[%clk 0:00:28.1]} 1-0